Cogmind - Beta 16 @@@ ROGUE MODE // 2025.10.25 @ 02:42:41 Player: Kalm Result: Destroyed by G-47 Trooper with Particle Gun Performance ------------- Evolutions (2) 1000 Regions Visited (8) 1600 Robots Destroyed (43) 215 Value Destroyed (1410) 1410 Prototype IDs (27) 540 Alien Tech Used (0) 0 Bonus (628) 628 TOTAL SCORE: 5393 Bonus ------- High Alert Combat Kills 11 Follower Combat Kills 350 Aligned with FarCom 300 Friendly Fire -33 Cogmind --------- Core Integrity 0/550 Matter 295/300 Energy 136/160 System Corruption 0% Temperature Cool (34) Movement Walking (190) Ox1 Location -8/Storage Parts ------- > --- POWER (1) -------- Light Nuclear Core > --- PROPULSION (3) --- Aluminum Leg Aluminum Leg Aluminum Leg > --- UTILITY (3) ------ High-capacity Storage Unit Target Analyzer Trap Reconfigurator > --- WEAPON (4) ------- Improved EM Shotgun Beam Rifle Light Assault Rifle Gauss Rifle > --- INVENTORY (20) --- Heavy Ion Engine Light Nuclear Core Light Nuclear Core Improved Treads Aluminum Leg Cryofiber Web Cooling System Compact Matter Pod (150) Structural Scanner Visual Processing Unit Improved Signal Interpreter Terrain Scan Processor Advanced Targeting Computer Reaction Control System Particle Gun Advanced Beam Cannon Ion Cannon Shock Bomb Launcher Peak State ------------ > --- POWER ------------ Reinforced Ion Engine > --- PROPULSION ------- Advanced Treads Advanced Treads Advanced Treads > --- UTILITY ---------- High-capacity Storage Unit Advanced Visual Processing Unit Trap Reconfigurator > --- WEAPON ----------- XL Autogun Array > --- INVENTORY -------- Light Nuclear Core Light Nuclear Core Advanced Treads Advanced Treads Advanced Treads Cooling System Medium Matter Pod Compact Matter Pod Structural Scanner Signal Interpreter Heavy Armor Plating Hacking Suite Improved EM Shotgun Beam Rifle Advanced Beam Cannon Ion Cannon Heavy Assault Rifle Gauss Rifle Grenade Launcher [Rating: 65] Favorites ----------- Power Reinforced Ion Engine Engine Reinforced Ion Engine Power Core Light Nuclear Core Propulsion Aluminum Leg Treads Advanced Treads Leg Aluminum Leg Wheel Wheel Utility High-capacity Storage Unit Device Trap Reconfigurator Storage High-capacity Storage Unit Processor Advanced Visual Processing Unit Hackware Hacking Suite Protection Heavy Armor Plating Weapon Light Assault Rifle Energy Gun Beam Rifle Energy Cannon Advanced Beam Cannon Ballistic Gun Light Assault Rifle Launcher Grenade Launcher Build | -11 -10 -10 -9 -9 -9 -8 -8 -8 ------- Run | Yrd Mat Min Mat Min Exi Min Mat Sto Slots Evolved 4 | . . . 2 . . . 2 . Power . | . . . . . . . . . Propulsion 1 | . . . 1 . . . . . Utility 1 | . . . 1 . . . . . Weapon 2 | . . . . . . . 2 . Parts Attached 53 | 6 4 4 3 2 2 5 1 26 Power 6 | 1 . . . 1 . 1 . 3 Engine 4 | 1 . . . 1 . 1 . 1 Core 2 | . . . . . . . . 2 Reactor . | . . . . . . . . . Propulsion 16 | 2 . 2 1 . . 2 . 9 Treads 7 | . . . . . . . . 7 Leg 7 | 2 . . 1 . . 2 . 2 Wheel 2 | . . 2 . . . . . . Hover . | . . . . . . . . . Flight . | . . . . . . . . . Utility 13 | 1 2 1 2 . 1 1 . 5 Device 5 | . 1 . 2 . 1 . . 1 Storage 3 | 1 1 1 . . . . . . Processor 3 | . . . . . . 1 . 2 Hackware 1 | . . . . . . . . 1 Protection 1 | . . . . . . . . 1 Artifact . | . . . . . . . . . Weapon 18 | 2 2 1 . 1 1 1 1 9 Energy Gun 7 | 2 2 . . . . . . 3 Energy Cannon 2 | . . . . . 1 . . 1 Ballistic Gun 8 | . . 1 . . . 1 1 5 Ballistic Cannon . | . . . . . . . . . Launcher 1 | . . . . 1 . . . . Special Weapon . | . . . . . . . . . Impact Weapon . | . . . . . . . . . Slashing Weapon . | . . . . . . . . . Piercing Weapon . | . . . . . . . . . Special Melee Weapon . | . . . . . . . . . Unidentified Prototypes 5 | . . . . . 2 . . 3 Parts Lost 16 | . . 1 3 2 . . . 10 Power 2 | . . . 1 . . . . 1 Propulsion 8 | . . . . 2 . . . 6 Utility 2 | . . . 1 . . . . 1 Weapon 4 | . . 1 1 . . . . 2 Highest Loss Streak 9 | . . 1 3 5 . . . 9 To Critical Strikes . | . . . . . . . . . Average Backups 15 | 3 7 12 18 18 17 13 14 17 Power 2 | . 1 2 3 2 3 2 2 1 Propulsion 2 | 2 3 4 4 3 2 1 2 2 Utility 6 | . . 2 6 7 6 5 5 7 Weapon 4 | . 2 2 5 6 5 4 5 5 Tool/Special . | . . . . . . . . . Unused Backups 28 | . 2 . . . 3 3 . 20 Power 6 | . . . . . . 1 . 5 Propulsion 5 | . 2 . . . . 1 . 2 Utility 12 | . . . . . 2 . . 10 Weapon 5 | . . . . . 1 1 . 3 Tool/Special . | . . . . . . . . . Average Slot Usage (%) 86 | . 90 100 92 93 100 100 72 78 Engine 7 | . 14 14 9 11 11 11 9 5 Core 1 | . . . . . . . . 3 Treads 10 | . . . . . . . . 18 Leg 14 | . 28 21 32 17 11 27 27 7 Wheel 2 | . . 6 . 8 22 5 . . Device 9 | . 5 14 17 22 22 13 9 5 Storage 10 | . 14 14 11 11 11 11 9 9 Processor 4 | . . . . . . 8 9 5 Protection 1 | . . . . . . . . 3 Energy Gun 6 | . 28 15 10 2 . . . 4 Energy Cannon 4 | . . . . . 11 11 3 2 Ballistic Gun 11 | . . 12 11 11 11 11 6 13 Peak Build Rating 65 | 6 8 9 12 11 24 28 57 65 Average Rating 33 | 4 6 7 10 10 18 27 53 47 On Entrance 17 | . 6 8 9 10 11 24 28 57 Avg Prop Armor Cover (%) 5 | . . . . 8 8 8 . 2 Naked Turns . | . . . . . . . . . Heaviest Build 90 | 14 90 89 51 51 52 57 66 76 Greatest Support 66 | 20 20 26 30 26 26 37 37 66 Greatest Overweight (x) 4 | 1 4 4 2 2 1 2 1 3 Average Overweight (x) . | . . 2 1 1 1 1 1 . Largest Inventory Capacity 25 | 8 25 25 20 20 20 20 20 20 Average Capacity 19 | 6 12 22 20 20 20 20 20 20 Most Carried 20 | 6 10 16 20 19 20 20 18 20 Average Carried 16 | 3 7 12 18 18 18 16 14 17 Final Capacity 25 | 8 25 20 20 20 20 20 20 20 Final Carried 20 | 6 10 16 20 18 20 16 14 18 Class Distribution -------------------- 27% | Mutant 18% | Commander-Skirmisher 15% | Scavenger-Tank 15% | Skirmisher 11% | Scavenger-Mutant 6% | Tank 4% | Scavenger-Gunner Dominant Class ---------------- Mutant | -10/Materials Mutant | -10/Mines Mutant | -9/Materials Mutant | -9/Mines Mutant | -9/Exiles Scavenger-Mutant | -8/Mines Scavenger-Mutant | -8/Materials Commander-Skirmisher | -8/Storage Resources | -11 -10 -10 -9 -9 -9 -8 -8 -8 ----------- Run | Yrd Mat Min Mat Min Exi Min Mat Sto Matter Collected 2074 | 192 75 549 72 38 . 108 . 1040 Remotely . | . . . . . . . . . Salvage Created 1504 | . 126 20 120 60 . 44 . 1134 Parts 95 | . 15 . 5 6 . 1 . 68 Haulers Intercepted . | . . . . . . . . . Recyclers Shooed . | . . . . . . . . . Parts Field Recycled . | . . . . . . . . . Retrieved Matter . | . . . . . . . . . Parts Self-Destructed . | . . . . . . . . . Prevented . | . . . . . . . . . Parts Restored . | . . . . . . . . . Kills | -11 -10 -10 -9 -9 -9 -8 -8 -8 ------- Run | Yrd Mat Min Mat Min Exi Min Mat Sto Combat Hostiles Destroyed 38 | . 5 1 2 2 . 1 . 27 Guns 29 | . 5 1 2 . . . . 21 Cannons 5 | . . . . . . 1 . 4 AOE 4 | . . . . 2 . . . 2 Classes Destroyed 11 | . 2 . 1 1 . 1 . 6 Worker 2 | . . . . . . . . 2 Mechanic 1 | . . . . . . . . 1 Operator 1 | . . . . . . . . 1 Drone 1 | . . . . . . . . 1 Swarmer 11 | . 3 1 . . . . . 7 Grunt 13 | . 2 . . 1 . . . 10 Brawler 1 | . . . . 1 . . . . Duelist 1 | . . . . . . . . 1 Sentry 9 | . . . 2 . . . . 7 Demolisher 2 | . . . . . . . . 2 Hunter 2 | . . . . . . 1 . 1 Best Kill Streak 7 | . 3 1 1 2 . 1 . 7 Combat Bots Only 6 | . 3 1 1 2 . 1 . 6 Max Kills in Single Turn 3 | . 1 1 1 1 . 1 . 3 Gunslinging . | . . . . . . . . . Exploded 1 | . . . . 1 . . . 1 Melee . | . . . . . . . . . Uniques/NPCs Destroyed . | . . . . . . . . . Combat | -11 -10 -10 -9 -9 -9 -8 -8 -8 -------- Run | Yrd Mat Min Mat Min Exi Min Mat Sto Hostile Shots Fired 259 | . 15 38 32 9 . 16 . 149 Missed 48 | . 5 6 8 2 . 5 . 22 Hits 211 | . 10 32 24 7 . 11 . 127 Melee 1 | . . . . 1 . . . . Projectile 210 | . 10 32 24 6 . 11 . 127 AOE 39 | . . . . . . . . 39 Critical Strikes 7 | . . . 1 . . . . 6 Damage Taken 3983 | . 91 259 354 130 . 164 . 2985 Core 763 | . 16 58 95 23 . 14 . 557 Absorbed by Shields . | . . . . . . . . . Core Remaining (%) 79 | 100 . 70 . . . 67 . . Volleys Fired 104 | . 11 9 10 3 . 8 . 63 Largest 4 | . 2 2 2 2 . 2 . 4 Hottest 167 | . 90 90 60 50 . 88 . 167 Shots Fired 200 | . 22 18 15 6 . 16 . 123 Gun 170 | . 22 18 15 3 . 8 . 104 Cannon 25 | . . . . . . 8 . 17 Launcher 5 | . . . . 3 . . . 2 Special . | . . . . . . . . . Kinetic 106 | . . 4 10 3 . 8 . 81 Thermal 64 | . 11 9 . . . 8 . 36 Explosive 5 | . . . . 3 . . . 2 Electromagnetic 25 | . 11 5 5 . . . . 4 Robot Hit Streak 12 | . 3 1 8 6 . 3 . 12 Robot Miss Streak 8 | . 5 8 1 1 . 2 . 5 Penetration Max . | . . . . . . . . . Secondary Targets 2 | . . . 1 . . . . 1 Max Gunslinging Chain 1 | . . . 1 . . . . 1 Shots Hit Robots 118 | . 10 4 13 5 . 9 . 77 Core Hits 78 | . 7 1 6 5 . 3 . 56 Critical Kills . | . . . . . . . . . Critical Parts Destroyed . | . . . . . . . . . Critical Strikes 3 | . . . 1 . . . . 2 Burn 1 | . . . . . . . . 1 Destroy 1 | . . . . . . . . 1 Corrupt 1 | . . . 1 . . . . . Melee Attacks . | . . . . . . . . . Impact . | . . . . . . . . . Slashing . | . . . . . . . . . Piercing . | . . . . . . . . . Sneak Attacks . | . . . . . . . . . Combat Hostiles . | . . . . . . . . . Follow-up Attacks . | . . . . . . . . . Damage Inflicted 3649 | . 121 59 114 136 . 156 . 3063 Guns 2521 | . 119 59 114 20 . 13 . 2196 Cannons 440 | . . . . . . 143 . 297 Explosions 682 | . . . . 116 . . . 566 Melee . | . . . . . . . . . Ramming 6 | . 2 . . . . . . 4 Kinetic 2045 | . . . 71 20 . 13 . 1941 Thermal 704 | . 37 38 . . . 143 . 486 Explosive 682 | . . . . 116 . . . 566 Electromagnetic 212 | . 82 21 43 . . . . 66 Impact . | . . . . . . . . . Slashing . | . . . . . . . . . Piercing . | . . . . . . . . . Highest Corruption 2 | . 2 2 . . . . . . Average Corruption 2 | . 2 2 . . . . . . Corruption Purged . | . . . . . . . . . Corruption Blocked . | . . . . . . . . . Effects 2 | . . 2 . . . . . . Matter Fused 1 | . . 1 . . . . . . Energy Discharges 1 | . . 1 . . . . . . Overload Shots . | . . . . . . . . . Overflow Damage 62 | . . . . 6 . . . 56 Projectiles . | . . . . . . . . . Explosions 62 | . . . . 6 . . . 56 Melee . | . . . . . . . . . Knockbacks . | . . . . . . . . . Impact . | . . . . . . . . . Kinetic . | . . . . . . . . . Secondary . | . . . . . . . . . Self-Inflicted Damage 59 | . . . . 38 . . . 21 Shots 2 | . . . . 1 . . . 1 Rammed 1 | . . . . . . . . 1 Targets Rammed 2 | . 1 . . . . . . 1 Kicked 1 | . 1 . . . . . . . Crushed . | . . . . . . . . . Highest Temperature 522 | . 174 170 11 10 . 221 . 522 Average Temperature 143 | . 76 94 9 4 . 115 . 169 Received Heat Transfer 789 | . 24 . 135 36 . . . 594 Effects 14 | . . . . . . . . 14 Shutdowns 5 | . . . . . . . . 5 Energy Bleed 1 | . . . . . . . . 1 Interference 2 | . . . . . . . . 2 Matter Decay 2 | . . . . . . . . 2 Short Circuit 1 | . . . . . . . . 1 Damage (major) 3 | . . . . . . . . 3 Siege Activations . | . . . . . . . . . Martial Activations . | . . . . . . . . . Shielding Activations . | . . . . . . . . . Robots Disrupted . | . . . . . . . . . Combat Hostiles . | . . . . . . . . . Robots Corrupted . | . . . . . . . . . Combat Hostiles . | . . . . . . . . . Parts Fried 1 | . . . . . . . . 1 Impact Corruptions . | . . . . . . . . . Robots Melted . | . . . . . . . . . Combat Hostiles . | . . . . . . . . . Parts Melted 1 | . . . . . . 1 . . Heat Transferred 1517 | . 111 111 . . . 259 . 1036 Parts Sabotaged . | . . . . . . . . . Parts Stolen . | . . . . . . . . . Parts Stripped . | . . . . . . . . . Power Chain Reactions . | . . . . . . . . . Alert | -11 -10 -10 -9 -9 -9 -8 -8 -8 ------- Run | Yrd Mat Min Mat Min Exi Min Mat Sto Maximum Alert Level 2 | . . . . . . . . 2 Low Security (%) 72 | 100 100 100 100 100 . 100 100 54 Level 1 27 | . . . . . . . . 44 Level 2 . | . . . . . . . . . Level 3 . | . . . . . . . . . Level 4 . | . . . . . . . . . Level 5 . | . . . . . . . . . High Security . | . . . . . . . . . Max Security . | . . . . . . . . . Peak Influence 439 | . 91 30 30 58 . 30 . 439 Initial 11 | . . 2 . 11 . . . . Average 128 | . 40 4 3 36 . 1 . 202 Influence Increases 1680 | . 127 30 60 67 . 30 . 1366 Destroy 0b10 Robot/C 960 | . 100 20 40 40 . 20 . 740 Destroy 0b10 Robot/NC 25 | . . . . . . . . 25 Destroy Leader 262 | . 20 10 20 10 . 10 . 192 Allied During Kill 209 | . . . . . . . . 209 Successful Hack 21 | . 6 . . . . . . 15 Disable Machine 60 | . . . . . . . . 60 Destroy Structure 83 | . 1 . . 17 . . . 65 Partial Spotted 15 | . . . . . . . . 15 Lose Combat Pursuer 45 | . . . . . . . . 45 Influence Decreases 1243 | . 120 37 30 59 38 30 . 929 Entered New Map 62 | . . 5 . 19 38 . . . Time Decay 799 | . 120 30 20 20 . 30 . 579 Lost Part 132 | . . 2 10 20 . . . 100 Lost Ally 250 | . . . . . . . . 250 Squads Dispatched 7 | . 1 . . . . . . 6 Investigation 2 | . . . . . . . . 2 Extermination . | . . . . . . . . . Reinforcement 3 | . 1 . . . . . . 2 Assault 2 | . . . . . . . . 2 Garrison . | . . . . . . . . . Intercept . | . . . . . . . . . Searches Triggered . | . . . . . . . . . Construction Impeded 1 | . . . . . . . . 1 Haulers Reinforced . | . . . . . . . . . Active Scanning Responses . | . . . . . . . . . Cargo Convoy Interrupts . | . . . . . . . . . Stealth | -11 -10 -10 -9 -9 -9 -8 -8 -8 --------- Run | Yrd Mat Min Mat Min Exi Min Mat Sto Distress Signals 4 | . 1 . . . . . . 3 Communications Jammed . | . . . . . . . . . Distress Signals . | . . . . . . . . . Times Spotted 66 | . 10 3 2 2 . 1 . 48 Peak Tracking Total 7 | . 4 3 2 2 . 1 . 7 Tactical Retreats 3 | . . . . . . . . 3 Traps | -11 -10 -10 -9 -9 -9 -8 -8 -8 ------- Run | Yrd Mat Min Mat Min Exi Min Mat Sto Traps Triggered 3 | . 1 . . . . . . 2 Indirectly . | . . . . . . . . . Trap Hack Attempts . | . . . . . . . . . Triggered . | . . . . . . . . . Disarmed . | . . . . . . . . . Reprogrammed . | . . . . . . . . . Reused . | . . . . . . . . . Traps Reconfigurated 9 | . . . . . . . . 9 Traps Extracted . | . . . . . . . . . Installed . | . . . . . . . . . Triggered . | . . . . . . . . . Machines | -11 -10 -10 -9 -9 -9 -8 -8 -8 ---------- Run | Yrd Mat Min Mat Min Exi Min Mat Sto Machines Disabled 4 | . . . . . . . . 4 Max in Single Turn 2 | . . . . . . . . 2 Machines Repaired . | . . . . . . . . . Machines Dismantled . | . . . . . . . . . Machines Sabotaged . | . . . . . . . . . Overloaded Fab Kills . | . . . . . . . . . Hacking | -11 -10 -10 -9 -9 -9 -8 -8 -8 --------- Run | Yrd Mat Min Mat Min Exi Min Mat Sto Machines Accessed 9 | . 1 . 2 . 1 . . 5 Terminals 8 | . 1 . 2 . . . . 5 Fabricators . | . . . . . . . . . Repair Stations . | . . . . . . . . . Recycling Units . | . . . . . . . . . Scanalyzers . | . . . . . . . . . Garrison Access . | . . . . . . . . . Total Hacks 21 | . 1 . 4 . 1 . . 15 Successful 8 | . 1 . 1 . 1 . . 5 Failed 13 | . . . 3 . . . . 10 Catastrophic 2 | . . . . . . . . 2 Database Lockouts . | . . . . . . . . . Manual 11 | . 1 . 3 . 1 . . 6 Terminals 20 | . 1 . 4 . . . . 15 Fabricators . | . . . . . . . . . Repair Stations . | . . . . . . . . . Recycling Units . | . . . . . . . . . Scanalyzers . | . . . . . . . . . Garrison Access . | . . . . . . . . . Terminal Hacks 6 | . . . 1 . 1 . . 4 Open Door 2 | . . . . . . . . 2 Alert Level 2 | . . . 1 . . . . 1 Zone Layout 1 | . . . . . . . . 1 Proto ID Catalog 1 | . . . . . 1 . . . Fabricator Hacks . | . . . . . . . . . Repair Station Hacks . | . . . . . . . . . Recycling Unit Hacks . | . . . . . . . . . Scanalyzer . | . . . . . . . . . Garrison Access Hacks . | . . . . . . . . . Unauthorized Hacks 2 | . 1 . . . . . . 1 Terminals 2 | . 1 . . . . . . 1 Assimilate 1 | . . . . . . . . 1 Operators 1 | . 1 . . . . . . . Fabricators . | . . . . . . . . . Repair Stations . | . . . . . . . . . Recycling Units . | . . . . . . . . . Scanalyzers . | . . . . . . . . . Garrison Access . | . . . . . . . . . Data Cores Recovered 1 | . . . . . . . . 1 Used . | . . . . . . . . . Hacking Detections 5 | . . . 1 . . . . 4 Full Trace Events 3 | . . . . . . . . 3 Feedback Events . | . . . . . . . . . Feedback Blocked . | . . . . . . . . . Robot Schematics Acquired . | . . . . . . . . . Robots Built . | . . . . . . . . . Authchips . | . . . . . . . . . Time . | . . . . . . . . . Total Robot Build Rating . | . . . . . . . . . Part Schematics Acquired . | . . . . . . . . . Parts Built . | . . . . . . . . . Authchips . | . . . . . . . . . Time . | . . . . . . . . . Total Part Build Rating . | . . . . . . . . . Part Studies Acquired . | . . . . . . . . . Parts Repaired . | . . . . . . . . . Time . | . . . . . . . . . Parts Recycled . | . . . . . . . . . Recycled Matter . | . . . . . . . . . Retrieved Matter . | . . . . . . . . . Retrieved Components . | . . . . . . . . . Parts Scanalyzed . | . . . . . . . . . Part Schematics Acquired . | . . . . . . . . . Parts Damaged . | . . . . . . . . . Bothacking | -11 -10 -10 -9 -9 -9 -8 -8 -8 ------------ Run | Yrd Mat Min Mat Min Exi Min Mat Sto Used RIF Installer . | . . . . . . . . . Robots Hacked . | . . . . . . . . . Non-combat . | . . . . . . . . . Combat . | . . . . . . . . . Robot Hacks Applied . | . . . . . . . . . Relay Couplers Released . | . . . . . . . . . Fabnet Peak Effective % . | . . . . . . . . . Robots Rewired . | . . . . . . . . . Allies Hacked . | . . . . . . . . . Hacks Repelled . | . . . . . . . . . Allies | -11 -10 -10 -9 -9 -9 -8 -8 -8 -------- Run | Yrd Mat Min Mat Min Exi Min Mat Sto Total Allies 12 | . . . . . . . . 12 Largest Group 10 | . . . . . . . . 10 Highest-Rated Group 173 | . . . . . . . . 173 Highest-Rated Ally 31 | . . . . . . . . 31 Total Orders 1 | . . . . . . . . 1 ROAM 1 | . . . . . . . . 1 Ally Attacks 94 | . . . . . . . . 94 Total Damage 1255 | . . . . . . . . 1255 Kills 12 | . . . . . . . . 12 Allies Corrupted 1 | . . . . . . . . 1 Allies Melted . | . . . . . . . . . Intel | -11 -10 -10 -9 -9 -9 -8 -8 -8 ------- Run | Yrd Mat Min Mat Min Exi Min Mat Sto Active Infowar (turns) 2774 | . 121 196 236 40 282 604 16 1279 Optics 1762 | . . . . . . 467 16 1279 Terrain 465 | . . . 6 40 282 137 . . Structural 743 | . 121 196 236 40 150 . . . Robot Analysis Total . | . . . . . . . . . Derelict Logs Recovered 1 | . . 1 . . . . . . Drone Launches 12 | . . . . . . . . 12 Drone Recoveries 2 | . . . . . . . . 2 Exploration | -11 -10 -10 -9 -9 -9 -8 -8 -8 ------------- Run | Yrd Mat Min Mat Min Exi Min Mat Sto Turns Passed 4087 | 80 303 196 236 40 282 606 16 2328 Spaces Moved 1901 | 61 147 72 105 22 262 329 8 895 Core 13 | 13 . . . . . . . . Treads 775 | . . . . . . . . 775 Legs 716 | 48 147 43 105 2 . 243 8 120 Wheels 397 | . . 29 . 20 262 86 . . Hover . | . . . . . . . . . Flight . | . . . . . . . . . Fastest Speed 50 | 50 120 105 190 105 105 105 193 145 Average Speed 174 | 107 160 214 192 119 105 172 193 197 Slowest Speed 400 | 120 400 400 260 260 105 193 193 385 Overloaded Moves . | . . . . . . . . . Propulsion Burnouts . | . . . . . . . . . Robots Hopped . | . . . . . . . . . Potential Cave-ins . | . . . . . . . . . Cave-ins Triggered . | . . . . . . . . . Exploration Rate (%) 30 | 5 24 23 14 6 42 68 2 86 Regions Visited 8 Branch Regions 5 Pre-discovered Areas 1 | . . 1 . . . . . . Known Exits Taken . | . . . . . . . . . Unknown Exits Taken 8 | 1 1 1 1 1 1 1 1 . Scrap Searched 3 | . . 1 . . . 2 . . Spaces Dug . | . . . . . . . . . Terrain Destroyed 95 | . . . . 30 . . . 65 Melee . | . . . . . . . . . Projectile 35 | . . . . . . . . 35 AOE 60 | . . . . 30 . . . 30 Terrain Rammed . | . . . . . . . . . Walls Destroyed . | . . . . . . . . . Machines Disabled . | . . . . . . . . . Actions | -11 -10 -10 -9 -9 -9 -8 -8 -8 --------- Run | Yrd Mat Min Mat Min Exi Min Mat Sto Total 2558 | 73 196 95 126 29 269 354 10 1406 Wait 377 | . 23 . 1 . . 3 . 350 Move 1893 | 60 146 71 104 21 261 328 7 895 Hop . | . . . . . . . . . Pick Up 69 | 7 7 8 7 1 2 3 . 34 Fast Attach 13 | 5 1 . 1 . . . . 6 Attach 30 | 1 . 1 3 3 . 2 1 19 Detach 6 | . . . . . . . 2 4 Swap 22 | . 3 5 . 1 2 3 . 8 Drop 36 | . 4 1 . . 3 7 . 21 Fire 104 | . 11 9 10 3 . 8 . 63 Melee . | . . . . . . . . . Ram . | . . . . . . . . . Kick 1 | . 1 . . . . . . . Crush 1 | . . . . . . . . 1 Escape Stasis . | . . . . . . . . . Rewire 1 | . . . . . 1 . . . Trap . | . . . . . . . . . Miscellaneous 5 | . . . . . . . . 5 Route ------- -11/Scrapyard -10/Materials -10/Mines -9/Materials -9/Mines -9/Exiles -8/Mines -8/Materials -8/Storage History --------- Turn | Location | Event 6 | -11/Scrapyard | Discovered new exit (range 15) 81 | -11/Scrapyard | Entered Materials 300 | -10/Materials | Discovered new exit (range 15) 322 | -10/Materials | Build established: Mutant 384 | -10/Materials | Entered Mines 424 | -10/Mines | Met a Derelict bent on vengeance 513 | -10/Mines | Learned location of Mines (-8) 557 | -10/Mines | Discovered new exit (range 8) 580 | -10/Mines | Entered Materials 580 | -9/Materials | Evolved 2 slots: Propulsion x1, Utility x1 763 | -9/Materials | Discovered new exit (range 12) 816 | -9/Materials | Entered Mines 850 | -9/Mines | Deemed a non-threat by the Exiles lab entrance 850 | -9/Mines | Discovered new exit (range 6) 856 | -9/Mines | Entered Exiles 858 | -9/Exiles | Lost 5 parts (1p2n1u1w) 874 | -9/Exiles | Discovered new exit (range 15) 902 | -9/Exiles | Met 8R-AWN 919 | -9/Exiles | Met EX-HEX 950 | -9/Exiles | Met EX-BIN 965 | -9/Exiles | Aligned with FarCom system 966 | -9/Exiles | Given EX-Vault access code 995 | -9/Exiles | Opened EX-Vault 998 | -9/Exiles | Found Prototype Device 1005 | -9/Exiles | Found Prototype Ballistic Gun 1006 | -9/Exiles | Identified Trap Reconfigurator 1010 | -9/Exiles | Identified XL Autogun Array 1043 | -9/Exiles | Warned to stay clear of 0b10 Research branches 1138 | -9/Exiles | Stole two prototypes: Trap Reconfigurator, XL Autogun Array 1138 | -9/Exiles | Entered Mines 1564 | -8/Mines | Build established: Scavenger-Mutant 1724 | -8/Mines | Discovered new exit (range 11) 1744 | -8/Mines | Entered Materials 1744 | -8/Materials | Evolved 2 slots: Weapon x2 1747 | -8/Materials | Discovered new exit (range 7) 1760 | -8/Materials | Entered Storage 1762 | -8/Storage | FarCom data flow suspended 2092 | -8/Storage | Build established: Skirmisher 2226 | -8/Storage | Assisted by bots powering up and referring to "LRC-V3" 2525 | -8/Storage | Build established: Commander-Skirmisher 2793 | -8/Storage | Lost 6 allies 2847 | -8/Storage | Met a pair of Derelict thieves 3012 | -8/Storage | Core integrity fell below 50% 3025 | -8/Storage | Lost 13 allies 3037 | -8/Storage | Core integrity fell below 20% 3084 | -8/Storage | Lost 9 parts (1p5n1u2w) 3549 | -8/Storage | Build established: Scavenger-Tank 4088 | -8/Storage | Destroyed by G-47 Trooper with Particle Gun Last Messages --------------- Dropped Autogun. R-06 Scavenger collects Hvy. Armor Plating. Acquired 21 matter. Acquired 56 matter. Connecting with Door Terminal... >>Open(Door) Sealed Heavy Doors opened. ALERT: Suspicious activity at Terminal S014. Dispatching Investigation squad. Slug penetrates G-47 Trooper. G-47 Trooper destroyed. Slug penetrates Wall. Acquired 61 matter. U-05 Engineer builds a Door. Acquired Aluminum Leg. Dropped Adv. Treads. Slug penetrates Y-45 Defender. Y-45 Defender destroyed. Acquired 35 matter. G-47 Trooper suffers critical hit (Burn). Map ----- +----------------------------------------------------+ | ??????????# #??????# #????????????# | | ??????????# ! #??????#% " ####????????# | | ??????????# #??# # " #????????## | | ??????????# ##?# + "" #?????????# | | ??????????# !"#?# # / #?????????# | | ??????????# ##?###?# #?????????### | | ??????????# #??????# ########### ###"""##????? | | ??????????#[ #??????#+?# # ## T#????# | | ??????????# #?????? ?# """""" + ## ##??? | | ?????????##! #????? ????????" # ####+####?""" | | ?????????#"%"####????" ?#??????" # #### ##""" | | ?????????#"["#???????" # """""" + % ##""" | | ?????????## ##???????" # # +%* | | ??????????#=#????????" # ###### ##""" | | ###########%#????????" # #??#### ###""" | | ##*#???????? ??# #?????# #?#""" | | ## #########/#################### #??? | | #%* T #???? | | / * ##???? | | """"" # [ % ##### | | """"" # ########+####### """ | | """"" *# #?# # """ | | =!=# #?# [ + """ ##### | | ##"Y"#"#%# #?# = ###### #####???? | | ?#"""###"# #?#! [! #????# # #??^ | | ?#####?### #?# @%!#????# + [#??? | | ?????????# #?###########g###??##+####### *%#??? | | ????????? ?????????# =!= #??# T#???# ??#??! | | ????????? ???? [* #??# ##???# [?????^ | | ????????? T #??#!!!#????# ???? | | ???????? #??#!!!#????? ????^ | | ????????# ########## #??#####?????"#??? "T | | ?????????#####?????????#######???????????? ????### | | | | | | | | | | | | | | | | | | | | | | | | | | | | | | | | | | | +----------------------------------------------------+ Best States ------------- Heat Dissipation 50 Energy Generation 14 Energy Capacity 280 Matter Stores 300 Matter Capacity 300 Sight Range 20 Terrain Scan Range 14 Terrain Scan Density 10 Armor Coverage 600 Evasion (%) 55 Target Analysis 5 Recoil Reduction 3 Item Schematics ----------------- None Robot Schematics ------------------ None Fabricated ------------ Nothing Repaired ---------- Nothing Studied --------- None Alien Tech Used ----------------- None Achievements -------------- DATA ERROR: Steam Global Achievement% For Emergencies Only I Have A Map? Morally Flexible Organ Harvest Plot Armor Release The Drones! Sixth Sense Spot Them First The More The Merrier There's More Where That Came From Well Done Challenges ------------ None Game ------ Seed BoreScrapChip Manual? 0 Play Time 00:55:16 Cumulative 14.6 hours Start 2025.10.25 @ 01:49:43 End 2025.10.25 @ 02:42:41 Sessions 1 Manual Loads 0 Difficulty Rogue Special Mode None Game No. 22 Rogue 22 Adventurer 0 Explorer 0 Win Type - Total 0 Types 0/0/0/0/0/0/0/0/0/0 Lore% 17 Gallery% 18 Achievement% 11 Wizard Run 0 Options --------- Layout 1 ASCII 0 Keyboard 0 Movement Mouse Keybinds 0 Fullscreen 1 Font 32/SmallcapsGlow Map View 50x35 Zoom Use 0% Tactical HUD 0 Map Filters NONE Filters NONE Steam 1 RUN: 1b1864a5-b685-4e38-b9dd-6a6696a20b50